bitfinex-derivatives/quotes_SOLF0:USTF0_20250125
["timestamp","ask_amount","ask_price","bid_price","bid_amount"]
[1737828892515,3.8734,258.21,258.15,3.8741]
[1737828892714,9.11313568,258.18,258.04,1.3401]
[1737828892921,9.11313568,258.18,258.05,0.7117648]
[1737828893215,0.02684112,258.14,258.05,9.11313568]
[1737828893421,0.02684112,258.14,258.06,1.9417413]
[1737828893620,0.02684112,258.14,258.07,0.7117413]
[1737828893816,0.02684112,258.14,258.12,3.8747]
[1737828895621,0.02684112,258.14,258.1,3.8749]
[1737828895822,0.02684112,258.14,258.07,1.23]
[1737828897121,9.11313568,258.09,257.99,1.2518]
[1737828897523,0.02978171,258.07,257.99,1.2518]
[1737828897923,9.11313568,258.05,257.95,1.2467]
[1737828898127,9.11313568,258.05,257.96,0.71204334]
[1737828898426,9.11313568,258.05,257.97,3.8769]
[1737828899025,3.8759,258.04,257.96,3.8771]
[1737828899231,9.11313568,258.03,257.97,0.71200453]
[1737828899431,9.11313568,258.03,257.89,2.00541757]
[1737828899626,13.01665844,258.03,257.94,3.8773]
[1737828899826,9.14045844,258.03,257.89,1.2933]
[1737828900127,9.14045844,258.03,257.9,0.71217817]
[1737828900526,0.02732276,258.03,257.9,0.71217817]
[1737828900825,0.02732276,258.03,257.92,9.11313568]
[1737828901132,0.02732276,258.03,257.93,0.71217817]
[1737828901624,0.02732276,258.03,258.0,3.8764]
[1737828902129,0.02732276,258.03,257.9,14.68201388]
[1737828902326,0.02732276,258.03,258.01,3.8763]
[1737828902521,14.68201388,258.13,257.9,14.68201388]
[1737828902728,14.68201388,258.24,258.01,14.68201388]
[1737828902931,14.68201388,258.24,258.02,6.09062507]
[1737828903229,14.68201388,258.24,258.03,0.71192507]
[1737828903732,0.0264741,258.16,258.11,0.02735513]
[1737828903930,0.0264741,258.16,258.14,3.8743]
[1737828904135,0.0264741,258.16,258.11,0.02735513]
[1737828904630,0.0264741,258.16,258.12,3.8746]
[1737828904932,0.0264741,258.16,258.11,0.02735513]
[1737828905531,1.3301,258.28,258.11,14.70936901]
[1737828905728,14.68201388,258.34,258.11,14.68201388]
[1737828905933,3.8722,258.29,258.2,3.8734]
[1737828906133,14.68201388,258.34,258.11,14.68201388]
[1737828906333,14.68201388,258.34,258.12,0.71147496]
[1737828906530,3.8722,258.29,258.21,3.8732]
[1737828906740,22.0,258.64,258.02,20.06071388]
[1737828906741,14.68201388,258.51,258.27,14.68201388]
[1737828906926,14.68201388,258.51,258.28,2.6297]
[1737828907131,14.68201388,258.51,258.34,3.8713]
[1737828907132,3.8695,258.47,258.34,3.8713]
[1737828907327,14.68201388,258.51,258.28,2.6297]
[1737828907837,1.3242,258.52,258.32,14.68201388]
[1737828908041,0.02914407,258.42,258.37,14.71074375]
[1737828908336,2.5233,258.57,258.37,14.71074375]
[1737828908531,2.5233,258.57,258.32,14.68201388]
[1737828908734,14.68201388,258.51,258.28,2.6297]
[1737828909437,1.2227,258.5,258.28,2.6297]
[1737828909737,0.02654543,258.42,258.36,0.0254646]
[1737828911438,0.02654543,258.42,258.4,3.8704]
[1737828911830,0.02654543,258.42,258.36,0.0254646]
[1737828912035,0.02654543,258.42,258.38,3.8707]
[1737828912434,3.89674543,258.42,258.36,0.0254646]
[1737828912632,0.02654543,258.42,258.36,0.0254646]
[1737828914635,14.68201388,258.61,258.37,14.68201388]
[1737828915940,0.02789412,258.52,258.46,0.02792185]
[1737828916139,1.317,258.64,258.43,1.2287]
[1737828916342,0.02619884,258.52,258.46,0.02956361]
[1737828916539,1.317,258.64,258.43,1.2287]
[1737828916848,1.317,258.64,258.44,2.05535493]
[1737828917147,1.317,258.64,258.57,3.8679]
[1737828917340,14.68201388,258.71,258.47,14.68201388]
[1737828917544,1.2469,258.78,258.58,14.68201388]
[1737828917739,1.2469,258.78,258.6,3.8675]
[1737828917740,0.02893063,258.62,258.6,3.8675]
[1737828917952,1.2469,258.78,258.59,1.2244]
[1737828918150,0.02541515,258.64,258.59,1.2244]
[1737828918342,0.02769634,258.71,258.66,0.02606057]
[1737828918540,1.2469,258.78,258.59,1.2244]
[1737828918750,0.02656286,258.71,258.66,0.02587287]
[1737828922852,0.02656286,258.71,258.66,3.89237287]
[1737828923352,0.02656286,258.71,258.66,0.02587287]
[1737828923654,0.02656286,258.71,258.66,3.89237287]
[1737828925049,0.02656286,258.71,258.66,0.02587287]
[1737828926158,3.8663,258.69,258.66,0.02587287]
[1737828926852,0.02656286,258.71,258.66,0.02587287]
[1737828929054,14.68201388,258.7,258.47,14.68201388]
[1737828929250,2.6222,258.69,258.47,14.68201388]
[1737828930256,3.8677,258.59,258.56,0.02512761]
[1737828930557,0.02770233,258.62,258.56,0.02512761]
[1737828931654,3.868,258.57,258.47,3.8694]
[1737828932860,4.75e-05,258.55,258.49,14.70970799]
[1737828933065,14.68201388,258.75,258.5,0.71051871]
[1737828933665,14.68201388,258.75,258.59,3.8676]
[1737828934162,0.02899409,258.7,258.64,0.02441348]
[1737828934362,1.2254,258.74,258.64,0.02441348]
[1737828934662,0.02473543,258.7,258.64,0.02441348]
[1737828935066,3.8665,258.67,258.64,0.02441348]
[1737828935368,14.70674931,258.7,258.49,14.68201388]
[1737828935662,14.68201388,258.7,258.47,1.3115]
[1737828935862,14.68201388,258.65,258.48,0.71060083]
[1737828936062,1.275,258.64,258.46,1.3474]
[1737828936363,3.868,258.57,258.5,3.8689]
[1737828936566,0.02946719,258.58,258.52,0.02960429]
[1737828936863,1.2825,258.6,258.4,0.71079316]
[1737828937064,0.02748703,258.58,258.52,0.02923406]
[1737828937262,0.02764214,258.51,258.44,3.8698]
[1737828937566,3.8685,258.54,258.37,16.02651388]
[1737828937863,0.02756017,258.5,258.45,0.02865234]
[1737828939265,0.02756017,258.5,258.46,3.8695]
[1737828941864,0.02756017,258.5,258.45,0.02865234]
[1737828942058,0.02756017,258.5,258.47,3.8694]
[1737828942864,0.02756017,258.5,258.45,0.02865234]
[1737828942865,0.02756017,258.5,258.48,3.8693]
[1737828943261,0.02756017,258.5,258.45,0.02865234]
[1737828943566,0.02756017,258.5,258.48,3.8692]
[1737828945170,6.017e-05,258.5,258.48,3.8692]
[1737828946569,6.017e-05,258.5,258.46,3.8695]
[1737828947069,6.017e-05,258.5,258.45,0.02865234]
[1737828948373,6.017e-05,258.5,258.45,3.89835234]
[1737828948866,6.017e-05,258.5,258.46,3.8696]
[1737828949267,6.017e-05,258.5,258.45,0.02865234]
[1737828949763,3.8695,258.47,258.45,0.02865234]
[1737828950471,6.017e-05,258.5,258.33,0.71091095]
[1737828950771,3.8699,258.44,258.33,0.71091095]
[1737828951669,0.02734964,258.41,258.36,0.02518944]
[1737828951864,14.68201388,258.44,258.28,0.71094068]
[1737828952069,14.68201388,258.44,258.36,0.02629193]
[1737828952070,0.0277762,258.37,258.36,0.02629193]
[1737828952374,3.8717,258.33,258.18,2.5468]
[1737828952666,3.8717,258.33,258.19,0.71122115]
[1737828952869,14.68201388,258.44,258.19,0.71122115]
[1737828953369,0.0295633,258.34,258.19,0.71122115]
[1737828953570,0.0295633,258.34,258.29,0.02578908]
[1737828954967,3.8718,258.32,258.29,0.02578908]
[1737828958188,1.3028,258.33,258.29,0.02578908]
[1737828958787,5.1744,258.33,258.29,0.02578908]
[1737828959183,1.3028,258.33,258.29,0.02578908]
[1737828959388,3.8719,258.31,258.29,0.02578908]
[1737828960286,1.3028,258.33,258.12,19.50538526]
[1737828960488,3.8728,258.25,258.12,4.82337138]
[1737828961188,14.68201388,258.29,258.12,3.48707138]
[1737828961587,0.02525506,258.23,258.18,3.89835889]
[1737828962691,0.02525506,258.23,258.19,3.8736]
[1737828962884,0.02525506,258.23,258.18,0.02465889]
[1737828963592,0.02525506,258.23,258.21,3.8733]
[1737828964186,1.3112,258.37,258.18,0.02465889]
[1737828964393,1.261,258.43,258.21,14.68201388]
[1737828964590,2.5848,258.43,258.22,1.3057]
[1737828964790,1.261,258.43,258.34,3.8713]
[1737828964989,1.261,258.43,258.22,1.3057]
[1737828965190,3.8711,258.36,258.22,1.3057]
[1737828965491,0.0261394,258.35,258.3,3.90144857]
[1737828965892,0.0261394,258.35,258.3,0.02954857]
[1737828966096,0.0261394,258.35,258.31,3.8718]
[1737828966393,0.0261394,258.35,258.3,0.02954857]
[1737828968099,0.0261394,258.35,258.3,3.90154857]
[1737828969793,0.0261394,258.35,258.31,3.8718]
[1737828970093,0.0261394,258.35,258.3,0.02954857]
[1737828971099,14.68201388,258.34,257.89,16.2682701]
[1737828971298,14.68201388,258.27,258.07,3.24666573]
[1737828971498,14.68201388,258.27,258.1,3.875]
[1737828971701,3.8737,258.19,258.1,3.875]
[1737828972094,3.8737,258.19,258.12,0.02504181]
[1737828972398,0.02656808,258.17,258.12,0.02504181]
[1737828978908,3.8745,258.14,258.12,0.02504181]
[1737828979404,0.02656808,258.17,258.12,0.02504181]
[1737828981002,0.02656808,258.17,258.13,3.8745]
[1737828981903,0.02656808,258.17,258.12,0.02504181]
[1737828982103,0.02656808,258.17,258.14,3.8744]
[1737828983104,0.02656808,258.17,258.12,0.02504181]
[1737828983601,0.02656808,258.17,258.14,3.8743]
[1737828983800,0.02656808,258.17,258.12,0.02504181]
[1737828984495,14.68201388,258.32,258.12,0.02504181]
[1737828984698,3.8726,258.26,258.19,3.8736]
[1737828985302,14.68201388,258.32,258.12,1.3255]
[1737828985502,3.8729,258.24,258.18,3.8738]
[1737828985698,0.02776269,258.25,258.19,0.02700621]
[1737828988206,3.8735,258.2,258.19,0.02700621]
[1737828993403,3.8748,258.11,258.07,3.8754]
[1737828994412,3.8751,258.1,258.05,3.8756]
[1737828994610,9.16842104,258.17,258.06,0.02446882]
[1737828994611,0.02581629,258.12,258.06,0.02446882]
[1737828997115,0.02581629,258.12,258.07,3.8753]
[1737828997416,0.02581629,258.12,258.06,0.02446882]
[1737828998019,0.02581629,258.12,258.11,3.8748]
[1737828999018,0.02581629,258.12,258.06,0.02446882]
[1737828999514,3.90061629,258.12,258.06,3.90006882]
[1737829000022,0.02581629,258.12,258.06,3.90006882]
[1737829000416,0.02581629,258.12,258.09,3.8751]
[1737829000718,0.02581629,258.12,258.06,0.02446882]
[1737829003223,0.02581629,258.12,258.08,3.8752]
[1737829003421,0.02581629,258.12,258.06,0.02446882]
[1737829003923,3.8749,258.11,258.06,0.02446882]
[1737829005121,3.8749,258.11,258.06,3.90006882]
[1737829005421,0.02581629,258.12,258.06,3.90006882]
[1737829005615,0.02581629,258.12,258.07,3.8754]
[1737829005822,3.90051629,258.12,258.07,3.8754]
[1737829007020,0.02581629,258.12,258.06,0.02446882]
[1737829007512,0.02581629,258.12,258.11,3.8748]
[1737829008122,3.8733,258.22,258.16,3.874]
[1737829008521,1.3112,258.23,258.16,3.874]
[1737829009021,1.3112,258.23,258.09,9.16842104]
[1737829009222,0.0287673,258.22,258.18,3.8738]
[1737829010122,0.0287673,258.22,258.2,3.8734]
[1737829011524,0.0287673,258.22,258.17,0.02711111]
[1737829011823,3.9019673,258.22,258.17,0.02711111]
[1737829012122,0.0287673,258.22,258.17,0.02711111]
[1737829014624,0.0287673,258.22,258.17,3.90101111]
[1737829015127,0.0287673,258.22,258.17,0.02711111]
[1737829016025,9.16842104,258.21,258.17,0.02711111]
[1737829016423,9.16842104,258.21,258.08,3.8753]
[1737829016820,3.8743,258.15,258.07,3.8753]
[1737829017529,0.02514618,258.14,258.09,3.8751]
[1737829017927,0.02514618,258.14,258.08,0.02461868]
[1737829018126,0.02514618,258.14,258.12,3.8746]
[1737829020924,0.02514618,258.14,258.09,1.2739]
[1737829021326,0.02514618,258.14,258.08,0.02461868]
[1737829021532,3.8749,258.11,258.08,0.02461868]
[1737829021831,0.02514618,258.14,258.08,0.02461868]
[1737829023232,3.875,258.11,258.08,0.02461868]
[1737829024934,3.8747,258.13,258.08,0.02461868]
[1737829025726,0.02514618,258.14,258.08,0.02461868]
[1737829025933,3.8747,258.12,258.08,0.02461868]
[1737829026629,3.89964618,258.14,258.08,3.89991868]
[1737829026830,0.02514618,258.14,258.08,3.89991868]
[1737829027230,0.02514618,258.14,258.08,0.02461868]
[1737829027530,3.8746,258.13,258.08,0.02461868]
[1737829027730,0.02514618,258.14,258.08,0.02461868]
[1737829027938,9.16842104,258.13,258.08,0.02461868]
[1737829028631,3.8748,258.12,258.08,0.02461868]
[1737829028831,9.16842104,258.13,258.08,0.02461868]
[1737829030134,13.04352104,258.09,258.08,0.02461868]
[1737829030932,9.16842104,258.09,258.08,0.02461868]
[1737829031132,9.16842104,258.13,258.08,0.02461868]
[1737829032137,3.8751,258.09,257.97,3.8768]
[1737829032436,1.3206,258.08,257.92,1.3371]
[1737829032738,3.877,257.97,257.9,3.8779]
[1737829032937,9.16842104,258.0,257.86,28.66306379]
[1737829033139,3.8778,257.92,257.86,9.28102156]
[1737829033334,0.02628692,257.96,257.86,9.28102156]
[1737829033536,0.02628692,257.96,257.85,324.33088074]
[1737829033843,0.02628692,257.96,257.9,3.8779]
[1737829034644,0.02628692,257.96,257.94,3.8774]
[1737829035239,0.02628692,257.96,257.9,2.5602]
[1737829036243,0.02628692,257.96,257.94,3.8773]
[1737829036739,0.02628692,257.96,257.9,2.5602]
[1737829036740,0.02628692,257.96,257.86,20.50701671]
[1737829036944,0.02628692,257.96,257.86,9.36161291]
[1737829037145,0.02628692,257.96,257.88,9.16842104]
[1737829037544,0.02628692,257.96,257.89,2.5709]
[1737829038044,0.02628692,257.96,257.91,3.8778]
[1737829038245,0.02628692,257.96,257.89,2.5709]
[1737829038646,11.79692104,258.08,257.98,3.8768]
[1737829038843,11.79692104,258.08,257.92,9.16842104]
[1737829039749,0.02872855,258.03,257.97,0.02633397]
[1737829041851,0.02872855,258.03,257.99,3.8766]
[1737829042353,0.02872855,258.03,257.97,0.02633397]
[1737829042554,0.02872855,258.03,257.98,3.8767]
[1737829042752,0.02872855,258.03,257.97,0.02633397]
[1737829042948,0.02872855,258.03,258.01,3.8763]
[1737829045253,3.8747,258.13,258.07,3.8754]
[1737829045450,3.8744,258.15,258.0,9.16842104]
[1737829045650,3.8744,258.15,258.01,1.3086]
[1737829046154,11.70422104,258.17,258.05,3.8757]
[1737829046349,0.02880009,258.11,258.05,0.02478477]
[1737829047547,3.8754,258.08,258.05,0.02478477]
[1737829047753,9.16842104,258.09,258.05,0.02478477]
[1737829048152,3.8755,258.07,258.05,0.02478477]
[1737829048656,9.16842104,258.09,258.05,0.02478477]
[1737829048852,3.8756,258.06,258.05,0.02478477]
[1737829049960,3.876,258.04,257.98,3.8767]
[1737829050157,9.16842104,258.09,257.98,3.8767]
[1737829050452,3.8762,258.02,257.9,1.3086]
[1737829051056,0.02843092,257.99,257.93,0.02591775]
[1737829052252,0.02843092,257.99,257.96,3.8771]
[1737829052458,0.02843092,257.99,257.93,0.02591775]
[1737829053552,0.02843092,257.99,257.97,3.8769]
[1737829054360,0.02843092,257.99,257.95,3.8772]
[1737829055061,3.90513092,257.99,257.93,0.02591775]
[1737829055258,0.02843092,257.99,257.93,0.02591775]
[1737829055659,3.877,257.97,257.93,0.02591775]
[1737829056156,0.02843092,257.99,257.93,0.02591775]
[1737829057163,9.16842104,257.97,257.93,0.02591775]
[1737829058159,3.8773,257.95,257.93,0.02591775]
[1737829058964,3.8776,257.93,257.81,1.2229]
[1737829059963,0.02981129,257.92,257.81,1.2229]
[1737829061563,0.02981129,257.92,257.89,3.8781]
[1737829061756,0.02981129,257.92,257.81,1.2229]
[1737829062760,0.02981129,257.92,257.9,3.878]
[1737829063864,0.02981129,257.92,257.83,9.16842104]
[1737829064066,0.02981129,257.92,257.91,3.8779]
[1737829065965,0.02981129,257.92,257.88,3.8782]
[1737829067868,0.02981129,257.92,257.83,9.16842104]
[1737829068270,0.02981129,257.92,257.86,1.3543]
[1737829068874,0.02981129,257.92,257.87,3.8783]
[1737829069072,0.02981129,257.92,257.86,1.3543]
[1737829069473,0.02981129,257.92,257.89,3.8781]
[1737829070869,0.02981129,257.92,257.91,3.8779]
[1737829071074,0.02981129,257.92,257.86,1.3543]
[1737829071574,0.02981129,257.92,257.89,3.8781]
[1737829071873,0.02981129,257.92,257.86,1.3543]
[1737829072269,3.90761129,257.92,257.86,5.2328]
[1737829073875,3.90761129,257.92,257.87,3.8785]
[1737829074171,0.02981129,257.92,257.81,1.2229]
[1737829074575,0.02981129,257.92,257.82,3.8791]
[1737829074972,0.02981129,257.92,257.81,1.2229]
[1737829079382,0.02981129,257.92,257.88,3.8782]
[1737829081684,0.02981129,257.92,257.75,9.16842104]
[1737829081984,0.02981129,257.92,257.76,2.6101]
[1737829082379,3.8786,257.86,257.82,3.8792]
[1737829082580,0.02981129,257.92,257.82,3.8792]
[1737829082781,0.02981129,257.92,257.76,2.6101]
[1737829082981,0.02981129,257.92,257.84,9.16842104]
[1737829083485,0.02981129,257.92,257.87,3.8784]
[1737829083687,0.02981129,257.92,257.84,9.16842104]
[1737829085190,0.02981129,257.92,257.9,3.878]
[1737829085379,0.02981129,257.92,257.84,9.16842104]
[1737829086289,0.02981129,257.92,257.89,3.8781]
[1737829086491,0.02981129,257.92,257.84,9.16842104]
[1737829086681,0.02981129,257.92,257.87,3.8784]
[1737829086883,0.02981129,257.92,257.84,9.16842104]
[1737829087288,0.02981129,257.92,257.88,3.8782]
[1737829087489,0.02981129,257.92,257.8,9.16842104]
[1737829089191,3.90761129,257.92,257.86,3.8786]
[1737829089493,0.02981129,257.92,257.76,14.57852104]
[1737829090195,3.8782,257.89,257.83,3.8791]
[1737829090395,0.02981129,257.92,257.76,11.77852104]
[1737829091895,3.878,257.9,257.85,319.0411597]
[1737829092892,0.02981129,257.92,257.91,3.8779]
[1737829093193,0.02981129,257.92,257.85,315.1624597]
[1737829093194,0.02981129,257.92,257.85,324.33088074]
[1737829093589,0.02981129,257.92,257.89,3.8781]
[1737829093790,0.02981129,257.92,257.85,324.33088074]
[1737829094493,0.02981129,257.92,257.9,3.8779]
[1737829095197,0.02981129,257.92,257.88,3.8782]
[1737829095699,0.02981129,257.92,257.86,2.5916]
[1737829096198,0.02981129,257.92,257.89,3.8781]
[1737829096797,0.02981129,257.92,257.86,2.5916]
[1737829097098,0.02981129,257.92,257.9,3.8779]
[1737829098002,0.02981129,257.92,257.86,20.81620113]
[1737829098703,0.02981129,257.92,257.91,3.8779]
[1737829098902,1.2301,258.04,257.89,9.1941078]
[1737829099304,3.8764,258.01,257.93,3.8775]
[1737829099506,1.2301,258.04,257.89,9.16842104]
[1737829099803,1.2301,258.04,257.86,30.21186538]
[1737829100005,0.02609282,257.99,257.94,0.0291426]
[1737829101400,3.90279282,257.99,257.94,0.0291426]
[1737829101903,0.02609282,257.99,257.94,0.0291426]
[1737829102102,9.19451386,257.99,257.94,0.0291426]
[1737829102706,3.8773,257.95,257.94,0.0291426]
[1737829103611,9.16842104,257.95,257.85,315.1624597]
[1737829103806,3.878,257.9,257.85,315.1624597]
[1737829104812,3.90445495,257.9,257.85,315.1624597]
[1737829106310,0.02645495,257.9,257.85,315.1624597]
[1737829106505,3.8785,257.87,257.85,315.1624597]
[1737829109514,0.02645495,257.9,257.85,315.1624597]
[1737829109715,3.8786,257.86,257.85,315.1624597]
[1737829110009,3.8786,257.86,257.85,290.8940597]
[1737829111014,3.8786,257.86,257.85,285.3692597]
[1737829111315,3.8786,257.86,257.85,187.94208617]
[1737829111613,3.8786,257.86,257.85,181.18358617]
[1737829111814,3.8786,257.86,257.85,166.48078617]
[1737829112413,3.8786,257.86,257.85,160.56968617]
[1737829113013,9.16842104,257.87,257.85,160.56968617]
[1737829114411,20.134897,257.86,257.85,160.56968617]
[1737829115813,5.32724886,257.86,257.85,164.44848617]
[1737829116119,5.32724886,257.89,257.85,160.56968617]
[1737829116609,5.32724886,257.89,257.88,3.8783]
[1737829117016,0.02645495,257.9,257.88,3.8783]
[1737829118616,0.02645495,257.9,257.85,160.56968617]
[1737829119822,0.02645495,257.9,257.85,164.44838617]
[1737829120122,0.02645495,257.9,257.85,160.56968617]
[1737829120618,3.8782,257.89,257.85,160.56968617]
[1737829120823,0.02645495,257.9,257.85,160.56968617]
[1737829121122,3.8784,257.88,257.85,160.56968617]
[1737829121715,0.02645495,257.9,257.85,160.56968617]
[1737829121923,3.8785,257.87,257.85,160.56968617]
[1737829124826,3.8785,257.87,257.85,154.66428617]
[1737829125627,30.4774165,257.88,257.85,154.66428617]
[1737829125925,3.8786,257.86,257.85,154.66428617]
[1737829132534,5.32724886,257.89,257.85,154.66428617]
[1737829132734,16.00820155,257.9,257.85,154.66428617]
[1737829132931,38.16068796,257.91,257.86,1.3452]
[1737829133136,28.13558796,257.91,257.86,1.3452]
[1737829133331,15.93048796,257.91,257.89,3.8782]
[1737829135238,0.02623469,257.93,257.89,3.8782]
[1737829136037,0.02623469,257.93,257.87,13.07257761]
[1737829136227,0.02623469,257.93,257.87,9.19417761]
[1737829137231,0.02623469,257.93,257.88,9.16842104]
[1737829137626,0.02623469,257.93,257.91,3.8778]
[1737829139841,0.02623469,257.93,257.92,9.16842104]
[1737829142239,0.02623469,257.93,257.89,3.8781]
[1737829142640,0.02623469,257.93,257.9,3.878]
[1737829143339,0.02623469,257.93,257.88,9.16842104]
[1737829143536,0.02623469,257.93,257.91,3.8778]
[1737829148143,0.02623469,257.93,257.92,3.8777]
[1737829149041,3.469e-05,257.93,257.92,13.04612104]
[1737829149742,11.68992104,258.11,257.92,9.16842104]
[1737829149943,2.5215,258.11,258.03,3.876]
[1737829150146,2.5215,258.11,257.96,9.16842104]
[1737829150340,3.8755,258.07,257.99,3.8766]
[1737829150546,2.5215,258.11,257.99,3.8766]
[1737829150746,11.68992104,258.11,257.99,3.8766]
[1737829150946,0.02899329,258.08,258.02,0.02470183]
[1737829151447,3.8756,258.07,258.02,0.02470183]
[1737829151649,0.02899329,258.08,258.02,0.02470183]
[1737829152147,0.02899329,258.08,258.04,3.8759]
[1737829152348,0.02899329,258.08,258.02,0.02470183]
[1737829152848,9.329e-05,258.08,258.07,3.8754]
[1737829153147,62.70337686,258.22,258.19,3.8736]
[1737829153347,14.82290938,258.23,258.2,9.16842104]
[1737829153950,64.25632974,258.27,258.24,3.8729]
[1737829154149,64.25632974,258.27,258.24,13.04132104]
[1737829154448,29.76725267,258.27,258.26,3.8726]
[1737829154645,0.02967726,258.28,258.26,3.8726]
[1737829154844,104.42827594,258.29,258.24,9.16842104]
[1737829155042,104.42827594,258.29,258.28,9.16842104]
[1737829155550,3.8124,258.53,258.28,9.16842104]
[1737829155751,3.8699,258.44,258.34,9.16842104]
[1737829155952,0.02582884,258.41,258.35,0.02592544]
[1737829157850,3.8708,258.39,258.35,0.02592544]
[1737829158850,3.89622884,258.41,258.35,0.02592544]
[1737829159145,0.02582884,258.41,258.35,0.02592544]
[1737829159551,3.8707,258.39,258.35,0.02592544]
[1737829159754,0.02582884,258.41,258.35,0.02592544]
[1737829160455,3.871,258.37,258.35,0.02592544]
[1737829160655,9.16842104,258.4,258.22,9.16842104]
[1737829160857,9.16842104,258.36,258.18,9.16842104]
[1737829161058,9.16842104,258.32,258.15,134.11678912]
[1737829161754,9.16842104,258.32,258.15,2.79909762]
[1737829161954,0.0289143,258.26,258.21,0.026946]
[1737829163561,3.8722,258.29,258.21,0.026946]
[1737829163761,14.65786596,258.35,258.21,0.026946]
[1737829163954,2.6016,258.39,258.16,14.65786596]
[1737829164258,3.8715,258.34,258.23,3.873]
[1737829164658,3.8715,258.34,258.17,131.3176915]
[1737829164862,0.02674086,258.31,258.26,0.02635701]
[1737829165062,0.02674086,258.31,258.26,3.89885701]
[1737829165560,0.02674086,258.31,258.26,135.21654851]
[1737829166058,2.6016,258.39,258.26,3.89885701]
[1737829166256,2.6016,258.39,258.26,0.02635701]
[1737829166458,2.6016,258.39,258.29,3.872]
[1737829166762,2.6016,258.39,258.21,14.65786596]
[1737829167158,0.0261346,258.33,258.27,0.02656637]
[1737829168662,3.8718,258.32,258.27,0.02656637]
[1737829168858,1.3057,258.31,258.27,0.02656637]
[1737829169863,3.8721,258.3,258.27,0.02656637]
[1737829170662,0.0261346,258.33,258.27,0.02656637]
[1737829172764,0.0261346,258.33,258.31,3.8718]
[1737829173956,2.6016,258.39,258.35,3.8712]
[1737829173957,1.2533,258.39,258.35,3.8712]
[1737829175165,1.2533,258.39,258.36,3.8711]
[1737829175564,1.2533,258.39,258.37,3.8709]
[1737829175865,0.02544462,258.4,258.34,0.02731843]
[1737829176261,0.02544462,258.4,258.35,3.8711]
[1737829177460,0.02544462,258.4,258.34,0.02731843]
[1737829177461,3.8707,258.39,258.34,0.02731843]
[1737829177666,14.65786596,258.39,258.34,0.02731843]
[1737829177967,3.8715,258.34,258.27,3.8724]
[1737829178167,1.3303,258.38,258.22,2.8]
[1737829178664,3.871,258.37,258.31,3.8718]
[1737829178868,1.3303,258.38,258.22,2.8]
[1737829179071,14.65786596,258.44,258.22,2.8]
[1737829179269,0.02585828,258.33,258.27,0.02443985]
[1737829179470,0.02585828,258.33,258.24,131.3176915]
[1737829179666,0.02585828,258.33,258.27,0.02632731]
[1737829180165,3.8703,258.42,258.27,131.34401881]
[1737829180366,17.26496596,258.49,258.27,131.34401881]
[1737829180568,17.26496596,258.49,258.28,131.3176915]
[1737829181168,17.26496596,258.49,258.3,131.3176915]
[1737829181362,0.02761551,258.41,258.36,0.02890453]
[1737829181566,0.02761551,258.41,258.4,3.8705]
[1737829182173,0.02761551,258.41,258.37,3.8709]
[1737829182373,0.02761551,258.41,258.36,0.02890453]
[1737829184566,0.02761551,258.41,258.36,3.89990453]
[1737829185471,0.02761551,258.41,258.36,0.02890453]
[1737829186268,3.8706,258.4,258.36,0.02890453]
[1737829186470,0.02761551,258.41,258.36,0.02890453]
[1737829187366,3.89801551,258.41,258.36,0.02890453]
[1737829187665,0.02761551,258.41,258.36,0.02890453]
[1737829188872,3.8705,258.4,258.36,0.02890453]
[1737829189074,0.02761551,258.41,258.36,0.02890453]
[1737829190073,9.1511572,258.38,258.32,34.62742477]
[1737829190274,1.2384,258.37,258.32,34.62742477]
[1737829190579,3.8713,258.35,258.32,34.62742477]
[1737829190776,1.2384,258.37,258.28,131.3176915]
[1737829191070,1.2384,258.37,258.22,131.3176915]
[1737829191374,0.02522061,258.35,258.3,0.0280251]
[1737829191975,0.02522061,258.35,258.33,3.8715]
[1737829193475,0.02522061,258.35,258.34,3.8714]
[1737829193876,0.02522061,258.35,258.3,0.0280251]
[1737829194172,0.02522061,258.35,258.3,3.9000251]
[1737829194374,0.02522061,258.35,258.3,0.0280251]
[1737829195276,9.1511572,258.34,258.18,131.3176915]
[1737829195576,9.1511572,258.34,258.27,3.8723]
[1737829196270,3.8717,258.32,258.27,3.8723]
[1737829196471,0.02865117,258.33,258.28,3.89772722]
[1737829196668,13.0226572,258.34,258.25,131.3176915]
[1737829196975,0.02585336,258.33,258.28,0.02585741]
[1737829197271,0.02585336,258.33,258.32,3.8717]
[1737829199474,5.336e-05,258.33,258.32,3.8717]
[1737829200975,1.3248,258.51,258.32,9.1511572]
[1737829201273,1.3248,258.51,258.37,9.1511572]
[1737829201679,1.3248,258.51,258.46,3.8695]